bitfinex/quotes_SOLUSD_20250210
["timestamp","ask_amount","ask_price","bid_price","bid_amount"]
[1739164838190,0.03,201.93,201.89,8.83878039]
[1739164838510,0.03,201.93,201.92,8.83878039]
[1739164839588,0.03,201.93,201.9,8.83878039]
[1739164839983,0.03,201.93,201.92,8.83878039]
[1739164841682,0.03,201.93,201.9,28.83878039]
[1739164842100,0.03,201.93,201.91,8.83878039]
[1739164844193,0.03,201.93,201.92,8.83878039]
[1739164845892,0.03,201.93,201.9,28.83878039]
[1739164846402,0.03,201.93,201.92,8.83878039]
[1739164847304,0.03,201.93,201.92,9.58143906]
[1739164848079,0.03,201.93,201.92,10.58145685]
[1739164848396,0.03,201.93,201.92,23.38213724]
[1739164849808,0.03,201.93,201.92,13.80068039]
[1739164850183,0.03,201.93,201.92,12.80068039]
[1739164850584,0.03,201.93,201.92,8.83878039]
[1739164850785,0.03,201.93,201.91,8.83878039]
[1739164852009,0.03,201.93,201.92,0.063]
[1739164853893,0.03,201.93,201.92,8.90178039]
[1739164854296,0.03,201.93,201.92,0.063]
[1739164856717,0.03,201.93,201.92,8.90178039]
[1739164857812,0.03,201.93,201.92,12.86368039]
[1739164857986,0.03,201.93,201.92,21.70246078]
[1739164858512,0.03,201.93,201.92,12.86368039]
[1739164860117,0.03,201.93,201.92,8.90178039]
[1739164861518,0.03,201.93,201.92,12.86368039]
[1739164862490,0.03,201.93,201.92,8.90178039]
[1739164862693,0.03,201.93,201.92,0.063]
[1739164862998,8.86878039,201.93,201.92,0.063]
[1739164863313,0.03,201.93,201.92,0.063]
[1739164865918,0.03,201.93,201.92,8.90178039]
[1739164866793,0.03,201.93,201.92,19.48321605]
[1739164867528,0.03,201.93,201.92,32.89506458]
[1739164868121,0.03,201.93,201.92,36.85696458]
[1739164870521,0.03,201.93,201.92,38.44626458]
[1739164870719,0.03,201.97,201.96,2.0]
[1739164871034,0.03,201.97,201.96,11.58118187]
[1739164871405,0.03,201.97,201.96,10.58118187]
[1739164872426,0.03,201.97,201.96,14.54228187]
[1739164873702,0.03,201.97,201.96,15.54228187]
[1739164874116,0.03,201.97,201.96,28.9541304]
[1739164879012,0.03,201.97,201.96,8.83878039]
[1739164879435,0.03,201.97,201.95,28.83878039]
[1739164879634,0.03,201.97,201.93,8.83878039]
[1739164879823,0.03,201.97,201.92,8.90178039]
[1739164881026,0.03,201.97,201.94,8.83878039]
[1739164882133,0.03,201.97,201.95,8.83878039]
[1739164882536,0.03,201.97,201.94,8.83878039]
[1739164882848,0.03,201.97,201.95,8.83878039]
[1739164883229,8.86878039,201.97,201.92,0.063]
[1739164884442,0.03,201.97,201.92,8.90178039]
[1739164885350,0.03,201.97,201.93,8.83878039]
[1739164887742,0.03,201.97,201.92,8.90178039]
[1739164889052,0.03,201.97,201.96,8.83878039]
[1739164890541,0.03,201.97,201.96,12.79988039]
[1739164890739,0.03,201.97,201.96,13.54242557]
[1739164893439,0.03,201.97,201.96,12.79988039]
[1739164893645,0.03,201.97,201.94,12.80018039]
[1739164895951,0.03,201.97,201.93,8.83878039]
[1739164896448,0.03,201.97,201.92,8.90178039]
[1739164896650,0.03,201.97,201.92,12.86368039]
[1739164897033,0.03,201.97,201.93,8.83878039]
[1739164897443,0.03,201.97,201.94,8.83878039]
[1739164897763,0.03,201.97,201.95,8.83878039]
[1739164898661,0.03,201.97,201.94,8.83878039]
[1739164900255,0.03,201.97,201.93,12.80048039]
[1739164901074,0.03,201.97,201.93,12.86348039]
[1739164901258,0.03,201.97,201.94,8.83878039]
[1739164901557,0.03,201.97,201.95,8.83878039]
[1739164902163,0.03,201.97,201.93,8.90178039]
[1739164902343,0.03,201.97,201.93,0.063]
[1739164903243,8.86878039,201.97,201.93,0.063]
[1739164904442,0.03,201.97,201.93,0.063]
[1739164913686,5.68603213,201.97,201.93,0.063]
[1739164913855,0.03,201.97,201.93,0.063]
[1739164917880,19.09788066,201.97,201.93,0.063]
[1739164918057,5.65603213,201.94,201.93,0.063]
[1739164918379,19.06788066,201.94,201.93,0.063]
[1739164920368,23.02938066,201.94,201.93,0.063]
[1739164921151,23.15487066,201.94,201.93,0.063]
[1739164921973,5.78152213,201.94,201.93,0.063]
[1739164922769,9.74302213,201.94,201.93,0.063]
[1739164924853,5.68603213,201.97,201.93,0.063]
[1739164925075,0.03,201.94,201.93,0.063]
[1739164926079,9.77302213,201.94,201.93,0.063]
[1739164926266,0.03,201.94,201.93,0.063]
[1739164926775,5.81152213,201.94,201.93,0.063]
[1739164927983,84.18487066,201.94,201.93,0.063]
[1739164928159,45.80899918,201.94,201.93,0.063]
[1739164929077,13.41184853,201.93,201.92,0.063]
[1739164929280,39.06788066,201.9,201.89,0.063]
[1739164929484,20.0,201.86,201.79,0.063]
[1739164929684,13.41184853,201.84,201.79,0.063]
[1739164929855,80.63174853,201.84,201.79,0.063]
[1739164930056,13.41184853,201.82,201.79,0.063]
[1739164930280,13.41184853,201.8,201.79,0.063]
[1739164931059,22.26457782,201.8,201.79,0.063]
[1739164931270,23.49690483,201.8,201.79,0.063]
[1739164931987,26.22887782,201.8,201.79,0.063]
[1739164932191,13.41184853,201.76,201.73,0.063]
[1739164932672,8.97821929,201.74,201.73,0.063]
[1739164932870,8.85272929,201.82,201.73,8.91572929]
[1739164933189,7.2199,201.89,201.74,2.33090604]
[1739164933190,6.2199,201.89,201.74,2.33090604]
[1739164933387,5.6014,201.91,201.78,20.0]
[1739164933690,20.0,201.89,201.78,20.0]
[1739164933870,3.86,201.92,201.79,0.743119]
[1739164934072,3.86,201.92,201.78,7.04064884]
[1739164934273,8.85272929,201.87,201.8,8.85272929]
[1739164934474,8.85272929,201.85,201.78,15.15032929]
[1739164935086,8.85272929,201.86,201.79,12.81702929]
[1739164936478,8.85272929,201.87,201.8,8.85272929]
[1739164936985,8.85272929,201.89,201.82,8.85272929]
[1739164937290,8.85272929,201.91,201.84,8.85272929]
[1739164937599,8.85272929,201.9,201.83,10.44032929]
[1739164937882,8.85272929,201.85,201.79,3.9645]
[1739164938181,8.85272929,201.85,201.79,4.0275]
[1739164938400,8.85272929,201.84,201.79,4.0275]
[1739164938690,8.85272929,201.83,201.79,0.063]
[1739164938889,8.85272929,201.8,201.79,0.063]
[1739164939586,22.26457782,201.8,201.79,0.063]
[1739164940273,31.11730711,201.8,201.79,0.063]
[1739164940581,113.88189711,201.8,201.79,0.063]
[1739164940883,105.02916782,201.8,201.79,0.063]
[1739164941079,117.84619711,201.8,201.79,0.063]
[1739164941289,13.41184853,201.75,201.73,0.063]
[1739164941489,69.85272929,201.74,201.73,0.063]
[1739164942076,83.26457782,201.74,201.73,0.063]
[1739164942283,69.85272929,201.74,201.73,0.063]
[1739164944214,69.97821929,201.74,201.73,0.063]
[1739164944508,61.0,201.74,201.73,0.063]
[1739164945609,8.85272929,201.78,201.73,0.063]
[1739164946123,8.85272929,201.75,201.73,0.063]
[1739164946407,8.97821929,201.74,201.73,0.063]
[1739164947377,12.94371929,201.74,201.73,0.063]
[1739164948394,150.85272929,201.77,201.73,0.063]
[1739164948597,69.85272929,201.78,201.73,0.063]
[1739164948809,8.85272929,201.82,201.75,8.85272929]
[1739164949097,8.85272929,201.81,201.74,8.85272929]
[1739164949304,8.85272929,201.8,201.73,8.91572929]
[1739164950412,0.063,201.86,201.75,8.85272929]
[1739164950413,8.85272929,201.82,201.75,8.85272929]
[1739164950615,8.85272929,201.82,201.76,8.85272929]
[1739164950917,8.85272929,201.82,201.75,8.85272929]
[1739164951077,8.85272929,201.81,201.74,8.85272929]
[1739164951510,0.12549,201.84,201.75,8.85272929]
[1739164951511,8.85272929,201.82,201.75,8.85272929]
[1739164952483,8.85272929,201.82,201.74,12.81822929]
[1739164952702,8.85272929,201.81,201.74,12.81822929]
[1739164952888,0.12549,201.84,201.74,12.81822929]
[1739164952889,8.85272929,201.82,201.75,8.85272929]
[1739164953208,8.85272929,201.83,201.76,8.85272929]
[1739164953805,8.85272929,201.83,201.75,1.6526]
[1739164953806,73.81602929,201.85,201.75,2.39591339]
[1739164953990,0.063,201.86,201.8,8.85272929]
[1739164954309,0.063,201.86,201.81,8.85272929]
[1739164955618,0.063,201.86,201.8,12.81692929]
[1739164955935,0.063,201.86,201.81,8.85272929]
[1739164956620,0.063,201.86,201.8,8.85272929]
[1739164956807,8.85272929,201.83,201.76,12.81772929]
[1739164957121,8.85272929,201.82,201.75,14.47052929]
[1739164957508,1.0,201.79,201.75,8.85272929]
[1739164958630,1.0,201.83,201.77,8.85272929]
[1739164958803,62.0,201.85,201.79,8.85272929]
[1739164959206,70.85272929,201.85,201.78,8.85272929]
[1739164959496,1.0,201.83,201.78,8.85272929]
[1739164959817,1.0,201.83,201.77,8.85272929]
[1739164960622,1.0,201.83,201.78,8.85272929]
[1739164961632,1.0,201.8,201.77,12.81762929]
[1739164961837,0.063,201.86,201.76,1.5584]
[1739164961838,1.0,201.78,201.76,1.5584]
[1739164962808,1.0,201.81,201.77,8.85272929]
[1739164963299,1.0,201.81,201.76,14.37612929]
[1739164963507,1.0,201.81,201.77,8.85272929]
[1739164963727,1.0,201.81,201.76,14.37612929]
[1739164963905,0.063,201.82,201.78,8.85272929]
[1739164964807,1.0,201.78,201.76,1.5584]
[1739164967029,1.063,201.82,201.77,8.85272929]
[1739164967533,1.0,201.8,201.76,14.37602929]
[1739164967713,1.0,201.8,201.76,10.41112929]
[1739164967923,1.0,201.76,201.73,0.03]
[1739164968122,1.0,201.76,201.73,3.9956]
[1739164968320,1.0,201.76,201.73,0.03]
[1739164968819,1.0,201.74,201.73,0.03]
[1739164969129,1.0,201.77,201.73,8.88272929]
[1739164969335,14.41184853,201.79,201.74,8.85272929]
[1739164969913,1.0,201.79,201.74,8.85272929]
[1739164970120,1.0,201.79,201.73,0.03]
[1739164970121,1.0,201.81,201.77,8.85272929]
[1739164970714,1.0,201.79,201.76,8.85272929]
[1739164971330,1.0,201.79,201.75,8.85272929]
[1739164971509,1.0,201.76,201.73,32.84832929]
[1739164972220,1.0,201.76,201.75,8.85272929]
[1739164972436,1.0,201.78,201.75,8.85272929]
[1739164973134,1.0,201.78,201.74,3.9654]
[1739164973330,1.0,201.78,201.73,28.88272929]
[1739164973738,1.0,201.76,201.73,28.88272929]
[1739164974131,1.0,201.74,201.73,0.03]
[1739164974936,1.0,201.76,201.73,3.9956]
[1739164975139,1.063,201.78,201.75,12.81802929]
[1739164975847,1.063,201.78,201.75,8.85272929]
[1739164976343,1.063,201.78,201.75,12.81792929]
[1739164976547,0.063,201.78,201.75,12.81792929]
[1739164976930,0.063,201.78,201.76,8.85272929]
[1739164977345,0.063,201.78,201.77,3.9649]
[1739164977648,0.063,201.78,201.77,12.81762929]
[1739164978146,0.0001,201.78,201.77,12.81762929]
[1739164978628,0.0001,201.78,201.77,13.56074464]
[1739164980034,0.0001,201.78,201.77,9.59584464]
[1739164980347,0.0001,201.78,201.77,9.59591668]
[1739164980556,0.0001,201.78,201.77,8.85272929]
[1739164981047,0.0001,201.78,201.75,8.85272929]
[1739164981230,0.0001,201.78,201.74,10.37772929]
[1739164981437,0.0001,201.78,201.74,8.85272929]
[1739164981746,0.0001,201.78,201.73,0.03]
[1739164981747,1.0,201.76,201.73,0.03]
[1739164982362,1.0,201.76,201.73,8.88272929]
[1739164982645,1.0,201.76,201.73,0.03]
[1739164983147,1.0,201.74,201.73,0.03]
[1739164984947,1.0,201.76,201.73,8.88272929]
[1739164985128,1.0,201.74,201.73,0.03]
[1739164985930,1.0,201.76,201.73,0.03]
[1739164986132,1.0,201.76,201.74,8.85272929]
[1739164986354,1.0001,201.78,201.74,8.85272929]
[1739164987250,1.0001,201.78,201.73,8.88272929]
[1739164987553,1.0,201.76,201.73,8.88272929]
[1739164989245,1.0,201.76,201.74,8.85272929]
[1739164989445,0.0001,201.78,201.75,8.85272929]
[1739164989848,1.0,201.77,201.75,8.85272929]
[1739164990049,1.0,201.77,201.74,8.85272929]
[1739164991168,0.0001,201.78,201.76,8.85272929]
[1739164991458,0.0001,201.78,201.77,9.59599367]
[1739164993455,0.0001,201.78,201.77,13.56089367]
[1739164993957,0.0001,201.78,201.77,13.68638367]
[1739164994662,0.063,201.82,201.8,20.0]
[1739164994841,0.063,201.82,201.81,9.59569279]
[1739164996267,0.063,201.86,201.85,20.0]
[1739164996466,0.063,201.86,201.85,29.59559253]
[1739164997360,0.063,201.86,201.85,28.85272929]
[1739164998368,0.063,201.86,201.84,8.85272929]
[1739164998873,0.063,201.86,201.85,8.85272929]
[1739164999662,0.063,201.86,201.85,28.85272929]
[1739165000176,0.063,201.86,201.85,32.81602929]
[1739165000353,0.063,201.86,201.85,33.55886436]
[1739165000659,0.063,201.86,201.85,13.55886436]
[1739165001562,0.063,201.86,201.85,12.81602929]
[1739165001747,0.063,201.86,201.85,12.94151929]
[1739165001957,0.03,201.94,201.89,20.0]
[1739165002149,0.03,201.94,201.93,8.85272929]
[1739165002762,0.03,201.94,201.93,12.81442929]
[1739165002944,0.03,201.94,201.93,8.85272929]
[1739165004671,0.03,201.94,201.9,8.85272929]
[1739165004672,1.03,201.94,201.9,8.85272929]
[1739165006968,1.03,201.94,201.91,8.85272929]
[1739165007273,0.03,201.94,201.92,8.85272929]
[1739165007479,0.03,201.94,201.93,8.85272929]
[1739165008051,0.03,201.94,201.93,9.59538111]
[1739165008871,0.03,201.94,201.93,13.55708111]
[1739165009078,0.03,201.94,201.93,13.68257111]
[1739165011269,0.03,201.94,201.93,13.55708111]
[1739165011475,0.03,201.94,201.93,12.81442929]
[1739165012269,0.03,201.94,201.93,8.85272929]
[1739165012664,1.0,201.93,201.91,8.85272929]
[1739165013455,1.0,201.93,201.92,8.85272929]
[1739165013655,0.03,201.94,201.92,8.85272929]
[1739165013978,0.03,201.94,201.93,8.85272929]
[1739165016277,0.03,201.94,201.93,12.81442929]
[1739165017075,0.03,201.94,201.93,8.85272929]
[1739165017277,0.03,201.94,201.92,8.85272929]
[1739165017471,0.03,201.94,201.93,8.85272929]
[1739165018989,0.03,201.94,201.92,8.85272929]
[1739165019293,1.03,201.94,201.92,8.85272929]
[1739165020490,1.0,201.92,201.9,8.85272929]
[1739165023285,1.03,201.94,201.91,8.85272929]
[1739165023595,0.03,201.94,201.93,8.85272929]
[1739165027962,0.03,201.94,201.93,9.59546939]
[1739165028382,0.03,201.94,201.93,12.81442929]
[1739165030780,0.03,201.94,201.93,13.55701723]
[1739165031972,0.03,201.94,201.93,8.85272929]
[1739165032373,0.03,201.94,201.93,12.81442929]
[1739165033875,0.03,201.94,201.93,12.93991929]
[1739165034194,0.03,201.94,201.93,14.47931929]
[1739165034784,0.03,201.94,201.93,14.35382929]
[1739165036204,0.03,201.94,201.93,12.81442929]
[1739165037169,0.03,201.94,201.93,8.85272929]
[1739165038302,0.03,201.94,201.93,12.81442929]
[1739165040588,0.03,201.94,201.93,8.85272929]
[1739165041574,0.03,201.94,201.92,8.85272929]
[1739165041774,1.0,201.9,201.86,3.9929]
[1739165041995,1.0,201.88,201.86,0.03]
[1739165042474,13.44184853,201.94,201.87,8.85272929]
[1739165042475,1.0,201.9,201.87,8.85272929]
[1739165042672,1.0,201.9,201.88,8.85272929]
[1739165042869,1.0,201.9,201.87,8.85272929]
[1739165044001,1.0,201.88,201.86,8.88272929]
[1739165045378,1.0,201.88,201.87,8.85272929]
[1739165045703,1.0,201.9,201.87,8.85272929]
[1739165046003,1.0,201.9,201.86,8.88272929]
[1739165046390,1.0,201.88,201.86,8.88272929]
[1739165047607,1.0,201.88,201.87,8.85272929]
[1739165047900,1.0,201.9,201.87,8.85272929]
[1739165049601,1.0,201.9,201.86,8.88272929]
[1739165050505,1.0,201.88,201.86,8.88272929]
[1739165051118,1.0,201.88,201.87,8.85272929]
[1739165051405,1.0,201.9,201.87,8.85272929]
[1739165052080,1.0,201.88,201.86,8.88272929]
[1739165053207,1.0,201.9,201.86,8.88272929]
[1739165053794,1.0,201.9,201.87,8.85272929]
[1739165054089,1.0,201.88,201.87,8.85272929]
[1739165055007,1.0,201.88,201.86,0.03]
[1739165055793,1.0,201.88,201.86,8.88272929]
[1739165056190,1.0,201.88,201.86,0.03]
[1739165056804,1.0,201.88,201.86,8.88272929]
[1739165057316,1.0,201.9,201.86,8.88272929]
[1739165057528,0.03,201.94,201.89,8.85272929]
[1739165057821,1.0,201.93,201.91,8.85272929]
[1739165060317,0.03,201.94,201.92,8.85272929]
[1739165060614,0.03,201.94,201.93,8.85272929]
[1739165061007,0.03,201.94,201.93,9.59532335]
[1739165061915,0.03,201.94,201.93,13.55702335]
[1739165062217,0.03,201.94,201.93,13.68251335]
[1739165063123,0.03,201.94,201.93,27.09436188]
[1739165066517,0.03,201.94,201.93,13.55702335]
[1739165073526,0.03,201.97,201.96,20.0]
[1739165073714,0.03,201.97,201.96,26.39356864]
[1739165075832,0.03,201.97,201.96,25.65107034]
[1739165076128,0.03,201.97,201.96,29.61217034]
[1739165076737,0.03,201.97,201.96,25.65107034]
[1739165076920,1.03,201.97,201.96,25.65107034]
[1739165078342,0.03,201.97,201.96,26.39371149]
[1739165078513,0.03,201.97,201.96,52.95909285]
[1739165078722,0.03,201.97,201.96,30.35481149]
[1739165079827,0.03,201.97,201.96,30.48030149]
[1739165080031,0.03,201.97,201.96,53.08458285]
[1739165081625,0.03,201.97,201.96,33.65708036]
[1739165082532,0.03,201.97,201.96,47.06892889]
[1739165088916,0.03,201.97,201.96,128.96892889]
[1739165089138,0.03,201.97,201.96,128.22628774]
[1739165094123,0.03,201.97,201.96,114.68894921]
[1739165094329,1.03,201.97,201.94,12.78914921]
[1739165094529,1.03,201.97,201.96,20.0]
[1739165095247,1.03,201.97,201.93,12.78954921]
[1739165095248,1.03,201.97,201.93,8.82784921]
[1739165095430,1.0,201.95,201.93,8.82784921]
[1739165096444,1.0,201.95,201.93,12.78954921]
[1739165099353,1.03,201.97,201.96,20.0]
[1739165101032,1.0,201.95,201.94,28.82784921]
[1739165101251,1.0,201.95,201.93,12.78934921]
[1739165101554,1.0,201.95,201.93,8.82784921]
[1739165101735,1.0,201.95,201.94,20.0]
[1739165102148,1.03,201.97,201.94,20.0]
[1739165102328,1.03,201.97,201.95,20.0]
[1739165102934,1.0,201.93,201.9,15.0250328]
[1739165103763,1.0,201.93,201.92,20.0]
[1739165103950,1.0,201.93,201.91,5.65524226]
[1739165104751,1.0,201.93,201.92,20.0]
[1739165105253,1.0,201.91,201.9,9.36979054]
[1739165105657,1.0,201.91,201.9,18.9873328]
[1739165106058,5.68524226,201.97,201.9,18.9873328]
[1739165106059,1.0,201.93,201.9,18.9873328]
[1739165106264,1.0,201.95,201.93,20.0]
[1739165106566,1.0,201.95,201.93,25.65524226]
[1739165107265,0.03,201.97,201.93,23.9616]
[1739165107884,0.03,201.97,201.93,29.61684226]
[1739165108061,0.03,201.97,201.95,5.65524226]
[1739165109181,0.03,201.97,201.93,24.70418735]
[1739165109182,0.03,201.97,201.96,9.61634226]
[1739165109677,0.03,201.97,201.96,23.15368079]
[1739165110145,0.03,201.97,201.96,105.05368079]
[1739165110349,0.03,201.97,201.96,106.05368079]
[1739165110576,0.063,201.99,201.97,19.43377871]
[1739165110764,0.063,202.03,202.02,5.65524226]
[1739165110949,0.063,202.03,202.02,19.93478604]
[1739165111467,0.063,202.03,202.02,23.89478604]
[1739165113074,0.063,202.07,202.06,20.12549]
[1739165113381,0.063,202.07,202.06,39.93461842]
[1739165113564,0.063,202.07,202.06,38.23857616]
[1739165113776,0.063,202.07,202.06,47.06024122]
[1739165113973,0.063,202.07,202.06,33.52290269]
[1739165114171,0.063,202.07,202.06,28.82166506]
[1739165114478,0.063,202.07,202.06,20.0]
[1739165114866,0.063,202.07,202.05,8.82166506]
[1739165115551,0.063,202.07,202.05,12.78096506]
[1739165115753,0.063,202.07,202.05,8.82166506]
[1739165115976,0.063,202.07,202.05,12.78096506]
[1739165116164,0.063,202.07,202.06,8.82166506]
[1739165116766,0.063,202.07,202.06,9.56380264]
[1739165117177,0.063,202.07,202.06,23.10114117]
[1739165118673,0.063,202.07,202.06,27.06034117]
[1739165121971,0.063,202.07,202.06,12.78086506]
[1739165122981,0.063,202.07,202.06,26.31820359]
[1739165123786,0.063,202.07,202.06,27.06025945]
[1739165124578,0.063,202.07,202.06,26.31820359]
[1739165125088,0.063,202.07,202.06,12.78086506]
[1739165125991,0.063,202.07,202.06,3.9592]
[1739165126500,0.063,202.07,202.06,28.82166506]
[1739165129188,0.063,202.07,202.06,43.10115856]
[1739165129504,0.063,202.07,202.06,47.06035856]
[1739165129671,0.063,202.07,202.06,28.82166506]
[1739165130991,0.063,202.07,202.06,46.31820359]
[1739165131588,0.063,202.07,202.06,128.21820359]
[1739165131900,0.063,202.07,202.06,142.93630883]
[1739165132192,0.063,202.07,202.06,135.36148463]
[1739165134193,0.063,202.07,202.06,136.57000549]
[1739165134376,0.063,202.07,202.06,134.11464377]
[1739165135824,0.063,202.07,202.06,130.93860571]
[1739165136789,0.063,202.07,202.06,153.64660371]
[1739165138295,0.063,202.07,202.06,131.06409571]
[1739165138830,0.03,202.08,202.07,15.66282853]
[1739165139112,0.03,202.08,202.07,116.00838237]
[1739165139419,0.03,202.08,202.07,136.84902697]
[1739165139720,0.03,202.08,202.07,136.72353697]
[1739165139930,0.03,202.08,202.07,113.14102897]
[1739165140125,0.03,202.08,202.07,117.10002897]
[1739165140411,0.03,202.08,202.07,139.68253697]
[1739165140716,0.03,202.08,202.07,139.80802697]
[1739165140885,0.03,202.08,202.07,140.80802697]
[1739165141304,0.03,202.08,202.07,139.68253697]
[1739165143615,0.03,202.08,202.07,140.80802697]
[1739165143817,0.03,202.13,202.11,13.53733853]
[1739165144013,0.03,202.13,202.12,19.92478357]
[1739165145907,0.03,202.13,202.12,23.88278357]
[1739165146219,0.03,202.13,202.12,23.75729357]
[1739165147125,0.03,202.13,202.12,23.01547553]
[1739165147727,0.03,202.13,202.12,3.958]
[1739165148102,0.03,202.13,202.11,87.545627]
[1739165148627,0.03,202.13,202.11,5.645627]
[1739165149315,0.03,202.13,202.12,3.958]
[1739165149717,0.03,202.13,202.11,20.0]
[1739165149918,5.675627,202.13,202.06,5.645627]
[1739165150625,5.675627,202.13,202.09,20.0]
[1739165151117,0.03,202.13,202.07,25.645627]
[1739165152027,0.03,202.13,202.07,29.604527]
[1739165152823,7.7178,202.13,202.09,20.0]
[1739165153127,5.645627,202.12,202.05,9.604827]
[1739165153932,13.363427,202.13,202.06,25.645627]
[1739165155733,13.363427,202.13,202.06,29.604627]
[1739165157933,7.7178,202.13,202.06,29.604627]
[1739165158235,7.7178,202.13,202.07,5.645627]
[1739165158839,7.7178,202.13,202.09,5.645627]
[1739165159016,7.7178,202.13,202.1,5.645627]
[1739165159216,7.7178,202.13,202.09,5.645627]
[1739165160046,7.7178,202.13,202.07,5.645627]
[1739165160216,13.363427,202.13,202.06,25.645627]
[1739165161037,13.363427,202.13,202.06,29.604627]
[1739165161345,5.645627,202.12,202.06,20.0]
[1739165161526,5.645627,202.09,202.03,0.03]
[1739165161841,5.645627,202.09,202.05,20.0]
[1739165162327,5.645627,202.1,202.05,20.0]
[1739165163714,5.645627,202.12,202.05,9.604927]
[1739165163923,13.363427,202.13,202.06,5.645627]
[1739165164321,13.363427,202.13,202.05,5.645627]
[1739165164542,5.645627,202.12,202.05,5.645627]
[1739165165638,7.7178,202.13,202.07,5.645627]
[1739165165820,7.7178,202.13,202.08,5.645627]
[1739165166023,7.7178,202.13,202.09,5.645627]
[1739165166736,7.7178,202.13,202.08,5.645627]
[1739165166937,7.7178,202.13,202.08,25.645627]
[1739165167926,7.7178,202.13,202.09,3.9586]
[1739165168842,7.7178,202.13,202.09,9.604227]
[1739165169042,7.7178,202.13,202.1,5.645627]
[1739165169738,0.03,202.13,202.12,5.645627]
[1739165171128,0.03,202.13,202.12,9.603627]
[1739165175350,0.03,202.13,202.12,23.01547553]
[1739165177151,0.03,202.13,202.12,9.603627]
[1739165182545,0.03,202.13,202.12,20.0]
[1739165182959,0.03,202.13,202.11,5.645627]
[1739165184187,0.03,202.13,202.11,9.603827]
[1739165184592,0.03,202.13,202.11,5.645627]
[1739165184890,0.03,202.13,202.1,25.645627]
[1739165185688,0.03,202.13,202.1,20.0]
[1739165186405,0.03,202.13,202.12,0.03]
[1739165186880,0.03,202.13,202.12,5.675627]
[1739165188380,0.03,202.13,202.12,9.633627]
[1739165198698,5.675627,202.13,202.12,0.03]
[1739165199199,6.42365898,202.13,202.12,0.03]
[1739165205812,6.54914898,202.13,202.12,0.03]
[1739165207824,6.54914898,202.13,202.06,0.03]
[1739165207825,1.0,202.1,202.06,0.03]
[1739165208012,5.645627,202.07,202.06,0.03]
[1739165217109,25.77126553,202.07,202.06,0.03]
[1739165217320,33.08889751,202.07,202.06,0.03]
[1739165217815,21.12549,202.04,202.03,0.03]
[1739165218143,40.93099751,202.04,202.03,0.03]
[1739165221198,13.41184853,202.01,201.93,23.0217]
[1739165221400,5.645627,201.98,201.93,23.0217]
[1739165222501,5.645627,201.98,201.93,3.0217]
[1739165222801,5.645627,201.97,201.93,3.0217]
[1739165223119,1.74803198,202.0,201.93,3.0217]
[1739165223120,5.645627,201.98,201.93,3.0217]
[1739165223725,5.645627,201.99,201.92,5.645627]
[1739165224225,5.645627,201.99,201.93,5.89644018]
[1739165225719,0.74803198,202.02,201.94,20.0]
[1739165225924,86.645627,202.03,201.97,5.645627]
[1739165226137,86.645627,202.03,201.96,5.645627]
[1739165226428,86.645627,202.03,201.94,20.02702326]
[1739165226429,5.645627,201.97,201.91,0.03]
[1739165226612,5.645627,201.97,201.92,3.9619]
[1739165226810,5.645627,201.98,201.92,3.9619]
[1739165228317,0.74803198,202.01,201.93,20.0]
[1739165228318,5.645627,201.99,201.93,20.0]